fUSD/lending_fUSD_20240707
["ID","MTS","AMOUNT","RATE_DAILY","PERIOD"]
[331383145,1720310627042,1919.65132767,0.00011659,2]
[331383146,1720310631128,161.19035565,0.00011659,2]
[331383147,1720310646704,669.57,0.00010881,2]
[331383166,1720310979560,2423.78360654,0.00011199,2]
[331383173,1720311032087,-448.12958754,0.00011758,2]
[331383176,1720311032099,-33.87041246,0.00011758,2]
[331383177,1720311032112,-155.0,0.00012302,2]
[331383180,1720311032123,-492.75515407,0.00012302,2]
[331383183,1720311032133,-297.36585903,0.00012314,2]
[331383186,1720311032143,-361.07,0.000126,2]
[331383189,1720311032152,-300.0,0.00012699,2]
[331383193,1720311032162,-5810.33276807,0.000127,2]
[331383198,1720311032173,-650.01339646,0.000127,2]
[331383201,1720311032186,-2137.71785778,0.000127,2]
[331383203,1720311032200,-6942.55597769,0.000127,2]
[331383205,1720311032210,-893.37,0.00012712,2]
[331383207,1720311032220,-250.0,0.00012725,2]
[331383209,1720311032229,-168.28,0.00012777,2]
[331383211,1720311032238,-447.39,0.0001278,2]
[331383213,1720311032247,-250.0,0.00012911,2]
[331383215,1720311032257,-1000.0,0.00012911,2]
[331383217,1720311032267,-376.29,0.00012915,2]
[331383219,1720311032279,-157.28,0.00012976,2]
[331383221,1720311032288,-200.0,0.00013101,2]
[331383223,1720311032297,-499.99,0.00013101,2]
[331383225,1720311032306,-155.0,0.00013128,2]
[331383227,1720311032315,-235.60543261,0.00013128,2]
[331383228,1720311032325,-669.57,0.00013145,2]
[331383229,1720311032334,-158.41126886,0.00013189,2]
[331383230,1720311032344,-590.0,0.00013314,2]
[331383231,1720311032353,-386.98,0.00013314,2]
[331383232,1720311032362,-157.28,0.00013314,2]
[331383233,1720311032372,-168.03,0.00013359,2]
[331383234,1720311032382,-411.54635958,0.00013516,2]
[331383235,1720311032391,-258.88603077,0.00013543,2]
[331383236,1720311032400,-150.0,0.000136,2]
[331383237,1720311032410,-157.28,0.00013652,2]
[331383238,1720311032419,-135.19850224,0.00013699,2]
[331383239,1720311032430,-5050.0,0.00013699,2]
[331383240,1720311032442,-765.29022052,0.00013699,2]
[331383241,1720311032453,-689.30241408,0.00013699,2]
[331383242,1720311032465,-360.35116936,0.00013699,2]
[331383243,1720311032476,-300.73088248,0.00013699,2]
[331383244,1720311032487,-922.53142088,0.00013699,2]
[331383245,1720311032500,-481.71810404,0.00013699,2]
[331383246,1720311032512,-650.40807414,0.00013699,2]
[331383247,1720311032524,-335.27325628,0.00013699,2]
[331383248,1720311032535,-309.18595598,0.00013699,2]
[331383249,1720311032544,-6.59356252,0.00013699,2]
[331383250,1720311032555,-477.29643748,0.00013699,2]
[331383251,1720311032566,-219.47787854,0.00013699,2]
[331383252,1720311032578,-30.52212146,0.00013699,2]
[331383253,1720311032587,-200.0,0.00013699,2]
[331383254,1720311032597,-528.66,0.000137,2]
[331383255,1720311032606,-528.66,0.000137,2]
[331383256,1720311032619,-521.87,0.000137,2]
[331383257,1720311032628,-296.94055061,0.00013802,2]
[331383258,1720311032638,-385.10220627,0.00013861,2]
[331383259,1720311032647,-417.55297659,0.0001387,2]
[331383260,1720311032656,-222.39185461,0.00013889,2]
[331383261,1720311032667,-1290.34138626,0.00013899,2]
[331383262,1720311032676,-205.32220319,0.00013899,2]
[331383263,1720311032685,-1702.658338,0.000139,2]
[331383264,1720311032696,-1486.44053923,0.000139,2]
[331383265,1720311032706,-3372.8496,0.000139,2]
[331383266,1720311032715,-4884.92317358,0.000139,2]
[331383301,1720311039076,-977.69249947,0.000139,2]
[331383305,1720311039097,-335.76750053,0.000139,2]
[331383309,1720311039117,-5283.43737236,0.000139,2]
[331383314,1720311039139,-7832.93162208,0.000139,2]
[331383319,1720311039157,-700.73898065,0.000139,2]
[331383323,1720311039173,-1135.6169544,0.000139,2]
[331383329,1720311039195,-686.53333975,0.000139,2]
[331383332,1720311039210,-399.61466976,0.000139,2]
[331383335,1720311039230,-419.11875416,0.000139,2]
[331383337,1720311039245,-288.32617828,0.000139,2]
[331383448,1720311040497,-5579.97555498,0.000139,2]
[331383451,1720311040511,-182.08348635,0.000139,2]
[331383454,1720311040526,-174.32853659,0.000139,2]
[331383457,1720311040539,-565.9024,0.000139,2]
[331383461,1720311040553,-4874.03192555,0.000139,2]
[331383464,1720311040571,-2625.96807445,0.000139,2]
[331383469,1720311040586,-178.80616544,0.000139,2]
[331383474,1720311040600,-183.25174718,0.000139,2]
[331383477,1720311040615,-158.32175172,0.00013964,2]
[331383479,1720311040630,-520.80966654,0.00013964,2]
[331383482,1720311040646,-2268.70864775,0.00013964,2]
[331383485,1720311040660,-307.20211007,0.00013964,2]
[331383487,1720311040674,-2000.0,0.00013973,3]
[331383489,1720311040687,-227.19964772,0.00013989,2]
[331383492,1720311040701,-5922.04166492,0.00013999,2]
[331383494,1720311040715,-201.35143862,0.00013999,2]
[331383497,1720311040729,-1000.0,0.00013999,5]
[331383499,1720311040743,-1135.38332444,0.00013999,2]
[331383502,1720311040757,-1781.84804876,0.00013999,2]
[331383504,1720311040771,-677136.2666441,0.00014,2]
[331383507,1720311040789,-476197.95467422,0.00014,2]
[331383510,1720311040806,-312.169017,0.00014,2]
[331383513,1720311040823,-987.22897559,0.00014,2]
[331383521,1720311040893,-560.57875223,0.00014,2]
[331383524,1720311040910,-12874.38635967,0.00014,2]
[331383527,1720311040927,-1791.76807849,0.00014,2]
[331383530,1720311040944,-2495.58714316,0.00014,2]
[331383548,1720311041115,-2729.59830795,0.00014,2]
[331383551,1720311041134,-1011.59816096,0.00014,2]
[331383554,1720311041150,-584.83825939,0.00014,2]
[331383557,1720311041167,-1751.1326407,0.00014,2]
[331383848,1720311043731,-1212.44429205,0.00014,2]
[331383850,1720311043743,-33340.24392775,0.00014,2]
[331383853,1720311043754,-397.66172814,0.00014,2]
[331383855,1720311043767,-2807.8000002,0.00014,2]
[331383869,1720311043881,-12387.60499801,0.00014,2]
[331383871,1720311043892,-12611.58875453,0.00014,2]
[331383873,1720311043904,-1013.27421864,0.00014,2]
[331383875,1720311043916,-1401.46857646,0.00014,2]
[331383877,1720311043928,-418.27070253,0.00014,2]
[331383895,1720311044089,-6536.68710222,0.00014,2]
[331383898,1720311044101,-627.10275821,0.00014,2]
[331383900,1720311044115,-35736.3529148,0.00014,2]
[331383902,1720311044126,-412.63836193,0.00014,2]
[331383904,1720311044138,-1244.1530835,0.00014,2]
[331383907,1720311044149,-570.0,0.00014,2]
[331383909,1720311044160,-500.7343211,0.00014,2]
[331383911,1720311044172,-1512.57679038,0.00014,2]
[331383913,1720311044184,-7416.18746697,0.00014,2]
[331383916,1720311044195,-4043.23692891,0.00014,2]
[331384127,1720311046411,-168.07679819,0.00013736,2]
[331384131,1720311046421,-494.56257007,0.00014,2]
[331384137,1720311046433,-616.06455151,0.00014,2]
[331384141,1720311046445,-3201.88579846,0.00014,2]
[331384146,1720311046458,-469.65,0.00014,2]
[331384149,1720311046470,-389.63124367,0.00014,2]
[331384152,1720311046482,-14325.86896,0.00014,2]
[331384155,1720311046494,-1164.58808857,0.00014,2]
[331384160,1720311046505,-3075.99999999,0.00014,2]
[331384163,1720311046516,-307.20211007,0.00014,2]
[331384165,1720311046530,-769.94999999,0.00014,2]
[331384166,1720311046543,-319.07821123,0.00014,2]
[331384167,1720311046555,-2280.0,0.00014,2]
[331384168,1720311046566,-758.50515589,0.00014,2]
[331384169,1720311046577,-14166.94,0.00014,2]
[331384170,1720311046588,-476.50408248,0.00014,2]
[331384171,1720311046600,-279.84981534,0.00014,2]
[331384174,1720311046614,-6254.49072629,0.00014,2]
[331384176,1720311046625,-671.7995638,0.00014,2]
[331384195,1720311256669,749.18,0.00011287,2]
[331384200,1720311420957,788.74652378,0.00011199,2]
[331384201,1720311445413,158.00016659,0.00011199,2]
[331384202,1720311445439,280.71153439,0.00011199,2]
[331384203,1720311469939,155.0,0.00011199,2]
[331384204,1720311497685,155.14785367,0.00011199,2]
[331384205,1720311497727,431.06738212,0.00011199,2]
[331384206,1720311504546,227.19964772,0.00011199,2]
[331384207,1720311519326,254.227224,0.00011199,2]
[331384209,1720311525398,155.0,0.00011199,2]
[331384210,1720311542553,237.91067889,0.00011199,2]
[331384238,1720311721900,518.57690782,0.00011199,2]
[331384240,1720311775565,1055.47775488,0.00011199,2]
[331384247,1720311851780,1013.87325221,0.00011199,2]
[331384248,1720311871899,213.25935589,0.00011199,2]
[331384249,1720311888438,520.84431968,0.00011199,2]
[331384250,1720311918674,6000.0,0.00011199,2]
[331384251,1720311933460,711.72,0.000106,2]
[331384252,1720311933840,474.92244159,0.00011199,2]
[331384254,1720311957965,163.65389911,0.00011199,2]
[331384255,1720311961460,1282.21774417,0.00011199,2]
[331384256,1720311967268,227.19964772,0.00011199,2]
[331384259,1720312022010,155.0,0.00011199,2]
[331384261,1720312032018,155.0,0.00011199,2]
[331384262,1720312050432,155.0,0.00011199,2]
[331384263,1720312059133,1054.99801398,0.00011199,2]
[331384264,1720312065439,155.0,0.00011199,2]
[331384266,1720312119558,155.0,0.00011199,2]
[331384267,1720312124276,296.94055061,0.00011199,2]
[331384269,1720312137783,727.88837222,0.00011199,2]
[331384287,1720312232038,-474.56322821,0.00012314,2]
[331384288,1720312232048,-197.97512692,0.00012314,2]
[331384289,1720312232057,-375.17748837,0.00012314,2]
[331384290,1720312232070,-10.02770187,0.00012314,2]
[331384291,1720312232081,-172.38414633,0.00012314,2]
[331384292,1720312232091,-200.0,0.00012325,2]
[331384293,1720312232100,-1000.0,0.00012403,2]
[331384294,1720312232110,-530.46,0.00012406,2]
[331384295,1720312232119,-725.95293104,0.00012415,2]
[331384296,1720312232128,-500.0,0.00012415,2]
[331384297,1720312232137,-250.0,0.00012484,2]
[331384298,1720312232148,-227.11,0.0001252,2]
[331384299,1720312232157,-158.91,0.00012541,2]
[331384300,1720312232167,-150.0,0.00012542,2]
[331384301,1720312232176,-167.63,0.00012596,2]
[331384302,1720312232185,-250.0,0.00012661,2]
[331384303,1720312232194,-177.86,0.00012698,2]
[331384304,1720312232203,-520.14,0.00012698,2]
[331384305,1720312232212,-711.72,0.00012863,2]
[331384306,1720312232221,-300.0,0.00012874,2]
[331384307,1720312232231,-3935.16,0.00012875,2]
[331384308,1720312232240,-4229.48,0.00012875,2]
[331384309,1720312232250,-499.99,0.00012875,2]
[331384310,1720312232259,-150.99,0.00012884,2]
[331384311,1720312232268,-227.19964772,0.00013128,2]
[331384312,1720312232278,-158.91,0.00013194,2]
[331384313,1720312232288,-354.98,0.00013228,2]
[331384314,1720312232299,-150.0,0.00013278,2]
[331384315,1720312232308,-150.0,0.00013278,2]
[331384316,1720312232318,-150.0,0.00013278,2]
[331384317,1720312232327,-150.0,0.00013278,2]
[331384318,1720312232337,-150.0,0.00013278,2]
[331384319,1720312232350,-150.0,0.00013278,2]
[331384320,1720312232360,-307.76,0.000133,2]
[331384321,1720312232371,-1181.14662357,0.000133,2]
[331384322,1720312232382,-150.0,0.00013378,2]
[331384323,1720312232392,-150.0,0.00013378,2]
[331384324,1720312232403,-150.0,0.00013378,2]
[331384325,1720312232412,-150.0,0.00013378,2]
[331384326,1720312232421,-150.0,0.00013378,2]
[331384327,1720312232431,-382.80000414,0.00013472,2]
[331384328,1720312232443,-155.0,0.00013472,2]
[331384329,1720312232454,-155.0,0.00013472,2]
[331384331,1720312232463,-437.62242038,0.00013516,2]
[331384333,1720312232472,-837.68,0.00013541,2]
[331384335,1720312232483,-10000.0,0.00013699,2]
[331384337,1720312232492,-250.0,0.00013699,2]
[331384340,1720312232502,-200.0,0.00013699,2]
[331384343,1720312232511,-3585.79,0.00013699,2]
[331384346,1720312232520,-966.42,0.00013699,2]
[331384348,1720312232532,-300.0,0.000137,2]
[331384349,1720312232543,-354.84061564,0.00013725,2]
[331384350,1720312232552,-199.46340719,0.00013736,2]
[331384351,1720312232562,-1135.38332444,0.00013759,2]
[331384352,1720312232571,-417.55297659,0.00013789,2]
[331384353,1720312232581,-210.7844,0.000138,2]
[331384354,1720312232590,-2195.6635,0.000138,2]
[331384355,1720312232599,-1341.2625115,0.00013899,2]
[331384356,1720312232609,-158486.7979,0.000139,2]
[331384357,1720312232618,-349.29190704,0.000139,2]
[331384358,1720312232628,-1000.0,0.000139,2]
[331384359,1720312232638,-1000.0,0.000139,2]
[331384360,1720312232647,-10133.9535,0.000139,2]
[331384361,1720312232657,-203.51161649,0.000139,2]
[331384362,1720312232666,-60894.08211188,0.000139,2]
[331384363,1720312232676,-163.26289088,0.000139,2]
[331384364,1720312232688,-569.82596788,0.000139,2]
[331384365,1720312232697,-322.17160086,0.000139,2]
[331384366,1720312232707,-7500.0,0.000139,2]
[331384367,1720312232717,-322.994045,0.000139,2]
[331384368,1720312232726,-2544.08831349,0.000139,2]
[331384369,1720312232736,-1217.60558244,0.000139,2]
[331384370,1720312232745,-1217.60558243,0.000139,2]
[331384371,1720312232755,-500.0,0.0001393,2]
[331384372,1720312232764,-500.0,0.0001393,2]
[331384373,1720312232774,-500.0,0.0001393,2]
[331384374,1720312232784,-500.0,0.0001393,2]
[331384375,1720312232793,-500.0,0.0001393,2]
[331384376,1720312232802,-367.7339,0.0001393,2]
[331384377,1720312232812,-1000.0,0.0001393,2]
[331384378,1720312232822,-1000.0,0.0001393,2]
[331384379,1720312232832,-1000.0,0.0001393,2]
[331384380,1720312232841,-1000.0,0.0001393,2]
[331384381,1720312232851,-1000.0,0.0001393,2]
[331384382,1720312232860,-1000.0,0.0001393,2]
[331384383,1720312232870,-1000.0,0.0001393,2]
[331384384,1720312232879,-1000.0,0.0001393,2]
[331384385,1720312232889,-1000.0,0.0001393,2]
[331384386,1720312232899,-1000.0,0.0001393,2]
[331384387,1720312232909,-520.2421,0.0001393,2]
[331384388,1720312232918,-1000.0,0.00013953,2]
[331384389,1720312232928,-820.839536,0.00013973,2]
[331384390,1720312232938,-196.34415125,0.0001399,2]
[331384391,1720312232948,-5924.47803761,0.00013999,2]
[331384392,1720312232957,-583.0,0.00014,2]
[331384393,1720312232967,-779124.42972588,0.00014,2]
[331384394,1720312232980,-800.0,0.00014,2]
[331384395,1720312232992,-992.484,0.00014,2]
[331384396,1720312233027,155.0,0.00011199,2]
[331384397,1720312233045,-2847.2444,0.00014,2]
[331384398,1720312233057,-7239.99999,0.00014,2]
[331384399,1720312233072,-74475.61951849,0.00014,2]
[331384400,1720312233086,-1047.0,0.00014,2]
[331384401,1720312233098,-600.0,0.00014,2]
[331384402,1720312233109,-1000.0,0.00014,2]
[331384403,1720312233120,-482.77585744,0.00014,2]
[331384404,1720312233133,-22644.48603585,0.00014,2]
[331384405,1720312233915,155.0,0.00011199,2]
[331384406,1720312237913,-167432.56792313,0.00014,2]
[331384409,1720312237923,-231474.44925932,0.00014,2]
[331384412,1720312237936,-15161.2129566,0.00014,2]
[331384417,1720312237947,-1072.50233623,0.00014,2]
[331384421,1720312237959,-7015.537408,0.00014,2]
[331384424,1720312237971,-1969.22712928,0.00014,2]
[331384426,1720312237982,-4795.42269386,0.00014,2]
[331384465,1720312238495,-769.59685023,0.00014,2]
[331384468,1720312238507,-272.5023659,0.00014,2]
[331384470,1720312238518,-667.76472037,0.00014,2]
[331384472,1720312238530,-326.82220256,0.00014,2]
[331384474,1720312238542,-4693.17062681,0.00014,2]
[331384476,1720312238553,-655.82000289,0.00014,2]
[331384478,1720312238566,-1654.53650654,0.00014,2]
[331384481,1720312238577,-412.27445557,0.00014,2]
[331384483,1720312238588,-510.656119,0.00014,2]
[331384655,1720312240513,-474.11868315,0.00013999,2]
[331384657,1720312240523,-195.12310844,0.00014,2]
[331384659,1720312240538,-350.44603762,0.00014,2]
[331384664,1720312240574,-671.97857942,0.00014,2]
[331384666,1720312240587,-264.08956389,0.00014,2]
[331384668,1720312240599,-32135.94853684,0.00014,2]
[331384671,1720312240610,-918.99432185,0.00014,2]
[331384673,1720312240623,-770.54761456,0.00014,2]
[331384675,1720312240635,-3210.81251125,0.00014,2]
[331384980,1720312243360,-392.29490377,0.00014,2]
[331384983,1720312243373,-577.82230101,0.00014,2]
[331384986,1720312243385,-636.87818,0.00014,2]
[331384989,1720312243397,-345.15,0.00014,2]
[331384992,1720312243408,-482.00237009,0.00014,2]
[331384996,1720312243420,-2396.5336603,0.00014,2]
[331384999,1720312243431,-3018.83057268,0.00014,2]
[331385001,1720312243443,-1093.93961604,0.00014,2]
[331385003,1720312243455,-582.60663814,0.00014,2]
[331385005,1720312243466,-374.91077647,0.00014,2]
[331385416,1720312247265,-531.0,0.00014,2]
[331385418,1720312247275,-25261.37676663,0.00014,2]
[331385454,1720312247601,-12683.26976281,0.00014,2]
[331385457,1720312247616,-458198.86129207,0.00014,2]
[331385460,1720312247640,-1693.28692681,0.00014,2]
[331386366,1720312719349,719.79,0.0001114,2]
[331386368,1720312769892,3197.04747145,0.0001114,2]
[331386373,1720313019213,241.81370471,0.00011199,2]
[331386377,1720313046775,155.0,0.00011199,2]
[331386382,1720313086804,227.19964772,0.00011199,2]
[331386383,1720313260611,155.0,0.00011199,2]
[331386384,1720313268685,683.8,0.00010745,2]
[331386386,1720313407511,-206.0,0.00011799,2]
[331386387,1720313407594,-696.93752439,0.000118,2]
[331386388,1720313407629,-627.99,0.00012623,2]
[331386389,1720313407662,-250.0,0.00012665,2]
[331386390,1720313407699,-3084.89107809,0.00012743,2]
[331386391,1720313432173,-781.72744129,0.00012302,2]
[331386395,1720313432185,-1124.44089642,0.00012302,2]
[331386397,1720313432195,-2281.89346904,0.00012743,2]
[331386399,1720313432206,-4427.30363913,0.00012743,2]
[331386401,1720313432218,-1648.12181374,0.00012743,2]
[331386403,1720313432227,-106.90696608,0.00012847,2]
[331386404,1720313432239,-143.09303392,0.00012847,2]
[331386405,1720313432248,-483.75887649,0.00012882,2]
[331386406,1720313432260,-1934.78112351,0.00012882,2]
[331386408,1720313432269,-1001.6,0.00013,2]
[331386410,1720313432279,-364.42,0.00013002,2]
[331386412,1720313432289,-683.8,0.00013009,2]
[331386413,1720313432300,-150.0,0.00013123,2]
[331386414,1720313432309,-499.99,0.00013155,2]
[331386415,1720313432319,-1000.0,0.0001316,2]
[331386416,1720313432329,-150.0,0.00013178,2]
[331386417,1720313432339,-854.45,0.00013241,2]
[331386418,1720313432348,-854.45,0.00013241,2]
[331386419,1720313432358,-854.45,0.00013241,2]
[331386420,1720313432368,-854.45,0.00013241,2]
[331386421,1720313432378,-534.49,0.00013278,2]
[331386422,1720313432387,-299.0,0.0001333,2]
[331386423,1720313432397,-528.66,0.00013378,2]
[331386424,1720313432407,-150.0,0.00013378,2]
[331386425,1720313432416,-150.0,0.00013378,2]
[331386426,1720313432425,-528.66,0.00013378,2]
[331386427,1720313432435,-150.0,0.00013378,2]
[331386428,1720313432444,-528.66,0.00013378,2]
[331386429,1720313432455,-150.0,0.00013378,2]
[331386430,1720313432468,-528.66,0.00013378,2]
[331386431,1720313432478,-528.66,0.00013378,2]
[331386432,1720313432487,-3081.45023659,0.00013448,2]
[331386433,1720313432499,-3553.35923179,0.00013448,2]
[331386434,1720313432605,-1038.19053162,0.00013448,2]
[331386435,1720313432614,-708.2394,0.00013474,2]
[331386436,1720313432624,-150.0,0.00013478,2]
[331386437,1720313432634,-150.0,0.00013478,2]
[331386438,1720313432644,-150.0,0.00013478,2]
[331386439,1720313432653,-528.66,0.00013578,2]
[331386440,1720313432663,-1029.36006838,0.00013699,2]
[331386441,1720313432674,-1028.79,0.00013699,2]
[331386442,1720313432686,-453.99681642,0.00013699,2]
[331386443,1720313432697,-826.22124225,0.00013699,2]
[331386444,1720313432708,-2999.30187295,0.00013699,2]
[331386445,1720313432718,-200.0,0.00013699,2]
[331386446,1720313432728,-250.0,0.00013699,2]
[331386447,1720313432738,-1267.21,0.00013699,2]
[331386448,1720313432748,-856.82,0.00013699,2]
[331386449,1720313432758,-2701.41110703,0.0001388,2]
[331386450,1720313432770,-4453.55193141,0.0001388,2]
[331386451,1720313432782,-4626.4527207,0.0001388,2]
[331386452,1720313432794,-200.0,0.00013887,2]
[331386453,1720313432804,-500.0,0.00013888,2]
[331386454,1720313432813,-200.0,0.00013888,2]
[331386455,1720313432823,-5071.93139219,0.0001389,2]
[331386456,1720313432832,-254.59873041,0.00013899,2]
[331386457,1720313432843,-1000.0,0.000139,2]
[331386458,1720313432852,-172.627995,0.000139,2]
[331386459,1720313432862,-197.97705073,0.000139,2]
[331386460,1720313432871,-6622.44489741,0.000139,2]
[331386461,1720313432880,-1393.42293125,0.000139,2]
[331386462,1720313432892,-184.53157812,0.000139,2]
[331386463,1720313432902,-228.27895864,0.000139,2]
[331386482,1720313441408,-167.63,0.00013638,2]
[331386483,1720313441418,-177.9,0.00013651,2]
[331386484,1720313441427,-215.32936334,0.000139,2]
[331386485,1720313441437,-417.55297659,0.00013952,2]
[331386486,1720313441446,-150.0,0.0001398,2]
[331386487,1720313441457,-63.58766007,0.00013989,2]
[331386488,1720313441471,-349.68640784,0.00013989,2]
[331386489,1720313441482,-5213.63209694,0.0001399,2]
[331386490,1720313441926,-294.62685571,0.0001399,2]
[331386493,1720313441938,-398.64828018,0.0001399,2]
[331386495,1720313441950,-10778.88031143,0.0001399,2]
[331386497,1720313441962,-3453.15224832,0.0001399,2]
[331386499,1720313441974,-6238.2454671,0.0001399,2]
[331386502,1720313441989,-1662.77623002,0.0001399,2]
[331386504,1720313441999,-2354.312566,0.0001399,2]
[331386506,1720313442010,-9708.24238091,0.0001399,2]
[331386508,1720313442021,-6640.68478879,0.0001399,2]
[331386510,1720313442032,-2242.36803581,0.0001399,2]
[331386512,1720313442044,-2222.52886056,0.0001399,2]
[331386514,1720313442055,-6437.90364503,0.0001399,2]
[331386516,1720313442065,-308.11,0.0001399,2]
[331386518,1720313442075,-196.34415124,0.0001399,2]
[331386520,1720313442084,-529.72889138,0.00013999,2]
[331386522,1720313442094,-582.0,0.00014,2]
[331386524,1720313442103,-7130.19939165,0.00014,2]
[331386526,1720313442114,-6044.38402084,0.00014,2]
[331386528,1720313442125,-714.662132,0.00014,2]
[331386531,1720313442137,-332.5,0.00014,2]
[331386533,1720313442148,-688.5,0.00014,2]
[331386535,1720313442159,-1094.18108457,0.00014,2]
[331386537,1720313442170,-2946.94453318,0.00014,2]
[331386539,1720313442182,-585.41820824,0.00014,2]
[331386542,1720313442193,-35997.81387241,0.00014,2]
[331386544,1720313442204,-610.779927,0.00014,2]
[331386545,1720313442215,-588.32474144,0.00014,2]
[331386578,1720313508952,380.0,0.00025,60]
[331386579,1720313649459,314.0,0.00025,60]
[331386580,1720313652606,2600.0,0.00025,120]
[331386581,1720313804598,739.95,0.00011035,2]
[331386586,1720314065678,14817.40419422,0.00011199,2]
[331386588,1720314230480,296.12885949,0.00011199,2]
[331386590,1720314251528,307.88069932,0.00011199,2]
[331386591,1720314276111,193.8739488,0.00011199,2]
[331386594,1720314356167,310.0,0.00011199,2]
[331386595,1720314377769,5062.75451632,0.00011199,2]
[331386596,1720314383276,211.47465837,0.00011199,2]
[331386597,1720314418492,702.95,0.0001036,2]
[331386600,1720314495243,-543.877928,0.00012018,2]
[331386601,1720314495278,-981.0,0.00012079,2]
[331386602,1720314495312,-931.78,0.00012241,2]
[331386603,1720314495347,-250.0,0.00012276,2]
[331386604,1720314495384,-300.0,0.00012279,2]
[331386605,1720314495422,-1956.47704653,0.0001228,2]
[331386606,1720314495485,-4963.13497453,0.0001228,2]
[331386607,1720314495535,-4963.13497453,0.0001228,2]
[331386608,1720314495587,-4963.13497453,0.0001228,2]
[331386609,1720314495635,-964.99640955,0.0001228,2]
[331386612,1720314632440,-171.75370986,0.00012141,2]
[331386614,1720314632450,-3143.28162033,0.0001228,2]
[331386618,1720314632460,-1000.0,0.00012281,2]
[331386621,1720314632470,-250.0,0.00012284,2]
[331386624,1720314632479,-1852.42,0.00012293,2]
[331386626,1720314632489,-3093.44325081,0.00012293,2]
[331386628,1720314632500,-876.07947217,0.00012293,2]
[331386629,1720314632511,-97.89688332,0.00012293,2]
[331386630,1720314632521,-158.91,0.00012294,2]
[331386631,1720314632531,-180.77,0.0001235,2]
[331386632,1720314632541,-300.0,0.00012404,2]
[331386633,1720314632550,-1277.71812763,0.00012405,2]
[331386634,1720314632564,-6659.40709401,0.00012405,2]
[331386635,1720314632580,-17593.04477836,0.00012405,2]
[331386636,1720314632590,-1000.0,0.00012455,2]
[331386637,1720314632601,-702.95,0.00012623,2]
[331386638,1720314632615,-247.95,0.00012739,2]
[331386639,1720314632629,-1380.06,0.00012739,2]
[331386640,1720314632639,-1347.4,0.00012739,2]
[331386641,1720314632649,-247.95,0.00012743,2]
[331386642,1720314632659,-247.95,0.00012746,2]
[331386643,1720314632670,-247.95,0.00012749,2]
[331386644,1720314632680,-247.95,0.00012753,2]
[331386645,1720314632690,-247.95,0.00012756,2]
[331386646,1720314632700,-247.95,0.00012759,2]
[331386647,1720314632709,-247.95,0.00012763,2]
[331386648,1720314632718,-247.95,0.00012766,2]
[331386649,1720314632728,-247.95,0.00012769,2]
[331386650,1720314632737,-247.95,0.00012773,2]
[331386651,1720314632746,-247.95,0.00012776,2]
[331386652,1720314632755,-247.95,0.0001278,2]
[331386653,1720314632764,-247.95,0.00012783,2]
[331386654,1720314632774,-247.95,0.00012786,2]
[331386655,1720314632783,-247.95,0.0001279,2]
[331386656,1720314632792,-247.95,0.00012793,2]
[331386657,1720314632802,-247.95,0.00012796,2]
[331386658,1720314632811,-247.95,0.000128,2]
[331386659,1720314632823,-247.95,0.00012803,2]
[331386660,1720314632832,-261.52,0.00012922,2]
[331386661,1720314632844,-2676.82821218,0.00012943,2]
[331386662,1720314632853,-750.0,0.00013295,2]
[331386663,1720314632867,-503.22170002,0.000133,2]
[331386664,1720314632877,-173.18,0.00013482,2]
[331386665,1720314632886,-1284.2871572,0.00013516,2]
[331386666,1720314632895,-159.56750544,0.00013574,2]